Workbook

Sheet Kalkulator
C9: ER_Kalkulator_PC_01_05
C10: Klient indywidualny
C12: Rodzaj Źródła Ciepła | D12: Pompa Ciepła
C13: Moc obliczeniowa | D13: 0.5
C14: Źródło Ciepła | D14: Eco Heat 1F mono - 6kW | E14: =IF(D12=Baza!A1,"",IF(ISNA(MATCH(D14,_xlfn.ANCHORARRAY(Arkusz1!N3),0)),"<- Wybierz poprawne źródło ciepła!","")) -> 
C15: =Obliczenia!E3 -> Proponowana pompa ciepła | D15: =Obliczenia!E4 -> Eco Heat 1F mono - 6kW
C16: Ilość obiegów grzewczych | D16: 1 obieg - 1 - 1 pompa obiegowa | E16: =IF(D12=Baza!A3,"",IF(E14<>"","",IF(ISNA(MATCH(D16,_xlfn.ANCHORARRAY(Arkusz1!Q3),0)),"<- Wybierz poprawną ilość obiegów grzewczych!",""))) -> 
C21: Eco Wakacje | D21: NIE
C22: Zasobnik CWU 200l | D22: NIE
C23: Wymiennik Ciepła | D23: NIE
C24: Zasobnik CWU 150l | D24: NIE | F24: Dotacja Czyste Powietrze
C25: Modernizacja CO/CWU | D25: NIE | F25: TAK
C26: Wykonanie wentylacji kotłowni | D26: NIE | F26: POZIOM DOTACJI
C27: Sterownik pokojowy bezprzewodowy | D27: NIE | F27: PODSTAWOWY
F28: =IF(D33="","",IF(F25="NIE","",(Obliczenia!O3+Obliczenia!O4))) -> 14080
F29: Ulga Termomodernizacyjna
C30: AUDYT + ŚWIADECTWO DO DOTACJI CZYSTE POWIETRZE | D30: NIE | F30: 0.19 | G30: =IF(D33="","",IF(F28="",D33*F30,(D33-F28)*F30)) -> 5790.9416
C31: Pakiet | D31: STANDARD PLUS
C32: Cena netto | D32: =IF(OR(E16<>"",E14<>""),"",Obliczenia!$C$2) -> 41258 | F32: Ilość lat kredytu: | G32: Wpłata własna:
C33: Cena brutto | D33: =IF(D32="","",IF(Obliczenia!$I$3<>"",Obliczenia!$I$3,Obliczenia!$I$4)) -> 44558.64 | F33: 6 | G33: 0
C34: Cena brutto po dotacjach | D34: =IF(D33="","",IF(F28="",(D33-G30),(D33-F28-G30))) -> 24687.6984
C36: MARŻA DODATKOWA | D36: 0

Sheet Raty kredytowe
C9: Inbank - kredyt do 10 lat | F9: Santander - kredyt do 10 lat
C10: Ilość lat | D10: =Kredyt!$J$2 -> 6 | F10: Ilość lat | G10: =Kredyt!$J$3 -> 6
C11: Cena instalacji brutto | D11: =Kredyt!$E$2 -> 44558.64 | F11: Cena instalacji brutto | G11: =Kredyt!$E$3 -> 44558.64
C12: Wkład własny | D12: =Kredyt!$F$2 -> 0 | F12: Wkład własny | G12: =Kredyt!$F$3 -> 0
C13: Kwota kredytu | D13: =Kredyt!$G$2 -> 44558.64 | F13: Kwota kredytu | G13: =Kredyt!$G$3 -> 44558.64
C14: Maksymalna kwota kredytu | D14: 100000 | F14: Maksymalna kwota kredytu | G14: 80000
C15: RATA MIESIĘCZNA | D15: =Kredyt!$M$2 -> 886.22184 | F15: RATA MIESIĘCZNA | G15: =Kredyt!$M$3 -> 886.22184

Sheet Kredyt (hidden)
E1: Kwota instalacji | F1: Wkład włany | G1: Kwota kredytu | H1: RRSO | I1: RRSO/m-c | J1: Okres kredytowania | K1: M-c | L1: Rata | M1: Warunki
A2: 2 | D2: Inbank | E2: =Kalkulator!$D$33 -> 44558.64 | F2: =Kalkulator!$G$33 -> 0 | G2: =E2-F2 -> 44558.64 | H2: 0.1284 | I2: =H2/12 -> 0.0107 | J2: =Kalkulator!$F$33 -> 6 | K2: =J2*12 -> 72 | L2: =(G2/K2)+G2*0.006 -> 886.22184 | M2: =IFERROR(IF(J2=VLOOKUP(J2,A2:A11,1,0),L2,0),"-") -> 886.22184
A3: 3 | D3: Santander | E3: =Kalkulator!$D$33 -> 44558.64 | F3: =Kalkulator!$G$33 -> 0 | G3: =E3-F3 -> 44558.64 | H3: 0.1284 | I3: =H3/12 -> 0.0107 | J3: =Kalkulator!$F$33 -> 6 | K3: =IFERROR(J3*12,120) -> 72 | L3: =(G3/K3)+G3*0.006 -> 886.22184 | M3: =IFERROR(IF(J3=VLOOKUP(J3,A2:A7,1,0),L3,0),"-") -> 886.22184
A4: 4
A5: 5
A6: 6
A7: 83 miesiące
A8: 7
A9: 8
A10: 9
A11: 10

Sheet Baza (hidden)
A1: Rodzaj kostrukcji | B1: Marża | D1: Źródło Ciepła | G1: Ilość obiegów grzewczych | I1: Armatura | K1: Montaż | M1: Elektryka | O1: Marża EcoRun | R1: Marża Supreme | U1: Koszty dodatkowe | X1: 0.5
A2: Pompa Ciepła | B2: STANDARD PLUS | C2: 10000 | D2: Nazwa | E2: moc [kWp] | F2: Cena netto/moduł [zł] | G2: Nazwa | H2: Cena | I2: Nazwa | J2: Cena | K2: Nazwa | L2: Cena | M2: Nazwa | N2: Cena | O2: 0 | P2: 5 | Q2: 7000 | R2: 0 | S2: 9 | T2: 8000 | U2: Połączenie starego źródła ogrzewania z Pompą Ciepła | V2: 2000 | X2: 1
A3: Piec | B3: STANDARD | C3: 8000 | D3: Piec na pelet Ferroli 12 kW | E3: 12 | F3: 19500 | G3: 1 obieg - 1 - 1 pompa obiegowa | H3: 2800 | I3: Polipropylen | J3: 2000 | K3: Montaż PC Polipropylen | L3: 6000 | M3: elektryka pompa | N3: 600 | O3: 5.01 | P3: 9 | Q3: 9000 | R3: 9.01 | S3: 22 | T3: 8000 | U3: Odcięcie starego źródła ciepła | V3: 0 | X3: 1.5
B4: RABAT | C4: 6000 | D4: Piec na pelet Ferroli 18 kW | E4: 18 | F4: 19500 | G4: 2 obiegi - 1 - 2 pompy obiegowe | H4: 3200 | I4: armatura kocioł | J4: 200 | K4: Montaż kocioł | L4: 3000 | M4: elektryka kocioł | N4: 1363.11 | O4: 9.01 | P4: 22 | Q4: 8000 | R4: PP | T4: 8000 | U4: Wyniesienie starego źródła ciepła | V4: 1700 | X4: 2
B5: MENAGO | C5: 4000 | D5: Piec na pelet Ferroli 24 kW | E5: 24 | F5: 19500 | G5: 1 obieg - 5/4 - 1 pompa obiegowa | H5: 3400 | O5: PP | Q5: 6500 | U5: Eco Wakacje | V5: 600 | X5: 2.5
D6: Piec zgazowujący PEREKO 14 kW | E6: 14 | F6: 22500 | G6: 2 obiegi - 5/4 - 2 pompy obiegowe | H6: 3800 | U6: Integracja z instalacją solarną | V6: 2000 | X6: 3
U7: Zalanie instalacji glikolem | V7: 1000 | X7: 3.5
D8: Eco Heat 1F mono - 6kW | E8: 6 | F8: 4858 | U8: Zasobink CWU 150l | V8: 1200 | X8: 4
D9: Eco Heat 3F mono - 8kW | E9: 8 | F9: 5385 | U9: Modernizacja CO/CWU czyste | V9: 20500 | X9: 4.5
D10: Eco Heat 3F mono - 10kW | E10: 10 | F10: 5913 | U10: Skarbonka | V10: 500 | X10: 5
D11: Eco Heat 3F mono - 12kW | E11: 12 | F11: 6441 | U11: Zasobink CWU PC | V11: 2800 | X11: 5.5
D12: Eco Heat 3F mono - 14kW | E12: 14 | F12: 6969 | U12: Wykonanie wentylacji kotłowni | V12: 1000 | X12: 6
D13: Eco Heat 3Fmono - 16kW | E13: 16 | F13: 7497 | U13: Wymiennik Ciepła | V13: 2000 | X13: 6.5
U14: Sterownik pokojowy bezprzewodowy | X14: 7
U15: Audyt | V15: 1600 | X15: 7.5
X16: 8
U17: Modernizacja CO/CWU czyste | V17: 6000 | X17: 8.5
X18: 9
X19: 9.5
X20: 10
X21: 10.5
X22: 11
U23: Dotacja Czyste powietrze | X23: 11.5
U24: PC + podstawowy | V24: 14080 | X24: 12
U25: PC + podwyższony | V25: 24640 | X25: 12.5
U26: PC + najwyższy | V26: 35200 | X26: 13
U27: PP + podstawowy | V27: 8200 | X27: 13.5
U28: PP + podwyższony | V28: 14350 | X28: 14
U29: PP + najwyższy | V29: 20500 | X29: 14.5
U30: Co/CWU + podstawowy | V30: 8200 | X30: 15
U31: Co/CWU + podwyższony | V31: 14350 | X31: 15.5
U32: Co/CWU + najwyższy | V32: 20500 | X32: 16
X33: 16.5
X34: 17
X35: 17.5
U36: Podstawowy | X36: 18
U37: Podwyższony | X37: 18.5
U38: Najwyższy | X38: 19
X39: 19.5
X40: 20
X41: 20.5
X42: 21
X43: 21.5
X44: 22
X45: 22.5
X46: 23
X47: 23.5
X48: 24
X49: 24.5
X50: 25
X51: 25.5
X52: 26
X53: 26.5
X54: 27

Sheet Obliczenia (hidden)
A1: =Kalkulator!$D$14 -> Eco Heat 1F mono - 6kW | B1: Cena jednostkowa | C1: Cena dla instalacji | D1: =VLOOKUP(Kalkulator!$D$14,Baza!$D$3:$E$13,2,0) -> 6 | E1: =_xlfn.CONCAT($D$1," kwp") -> 6 kwp | H1: NIE
A2: Rodzaj instalacji | B2: =Kalkulator!$D$12 -> Pompa Ciepła | C2: =SUM(D30,C33:C35) -> 41258 | H2: TAK
A3: Źródło Ciepła | B3: =VLOOKUP(Kalkulator!$D$14,Baza!D3:F13,3,0) -> 4858 | C3: =_xlfn.IFS(Kalkulator!$D$12=Baza!$A$2,VLOOKUP(Kalkulator!$D$14,Baza!$D$8:$F$13,3,0),Kalkulator!$D$12=Baza!$A$3,VLOOKUP(Kalkulator!$D$14,Baza!$D$3:$F$7,3,0)) -> 4858 | E3: =_xlfn.IFS(Baza!A2=Kalkulator!D12,"Proponowana pompa ciepła",Baza!A3=Kalkulator!D12,"Proponowany piec") -> Proponowana pompa ciepła | H3: Klient indywidualny | I3: =IF($H$3=Kalkulator!$C$10,(Obliczenia!$C$2-C19)*1.08+(C19*1.23),"") -> 44558.64 | N3: =Kalkulator!F27 -> PODSTAWOWY | O3: =_xlfn.IFS(AND(B2=Baza!A2,Obliczenia!N3=Baza!U36),Baza!V24,AND(B2=Baza!A2,Obliczenia!N3=Baza!U37),Baza!V25,AND(B2=Baza!A2,Obliczenia!N3=Baza!U38),Baza!V26,AND(B2=Baza!A3,Obliczenia!N3=Baza!U36),Baza!V27,AND(B2=Baza!A3,Obliczenia!N3=Baza!U37),Baza!V28,AND(B2=Baza!A3,Obliczenia!N3=Baza!U38),Baza!V29) -> 14080
A4: Ilość obiegów grzewczych | B4: =IF($B$2=Baza!$A$2,_xlfn.IFS(Kalkulator!$D$14=Baza!$D$8,VLOOKUP(Kalkulator!$D$16,Baza!$G$3:$H$4,2,0),Kalkulator!$D$14=Baza!$D$9,VLOOKUP(Kalkulator!$D$16,Baza!$G$3:$H$4,2,0),Kalkulator!$D$14=Baza!$D$10,VLOOKUP(Kalkulator!$D$16,Baza!$G$3:$H$4,2,0),Kalkulator!$D$14=VLOOKUP(Kalkulator!$D$14,Baza!$D$11:$D$13,1,0),VLOOKUP(Kalkulator!$D$16,Baza!$G$5:$H$6,2,0)),0) -> 2800 | C4: =IF($B$2=Baza!$A$2,IFERROR(Obliczenia!B4,IFERROR(IF(Kalkulator!$D$14=VLOOKUP(Kalkulator!$D$14,Baza!$D$8:$D$10,1,0),Baza!$H$3,0),Baza!$H$5))) -> 2800 | E4: =IF(Kalkulator!D12=Baza!A2,_xlfn.IFS(Kalkulator!D13<Obliczenia!N19,Obliczenia!O19,Kalkulator!D13<Obliczenia!N20,Obliczenia!O20,Kalkulator!D13<Obliczenia!N21,Obliczenia!O21,Kalkulator!D13<Obliczenia!N22,Obliczenia!O22,Kalkulator!D13<Obliczenia!N23,Obliczenia!O23,Kalkulator!D13<Obliczenia!N24,Obliczenia!O24),_xlfn.IFS(AND(Kalkulator!D12=Baza!A3,Baza!D6=Kalkulator!D14,Kalkulator!D13<Obliczenia!N31),Obliczenia!O31,AND(Kalkulator!D12=Baza!A3,Baza!D6=Kalkulator!D14,Kalkulator!D13>Obliczenia!N31),"Potrzebujemy większej mocy pieca",Kalkulator!D13<Obliczenia!N26,Obliczenia!O26,Kalkulator!D13<Obliczenia!N27,Obliczenia!O27,Kalkulator!D13<Obliczenia!N28,Obliczenia!O28,Kalkulator!D13<Obliczenia!N29,Obliczenia!O29)) -> Eco Heat 1F mono - 6kW | H4: Klient biznesowy | I4: =IF($H$4=Kalkulator!$C$10,Obliczenia!$C$2*1.23,"") ->  | O4: =IF(AND(B2=Baza!A3,Kalkulator!D25="TAK",Obliczenia!N3=Baza!U36),Baza!V30,IF(AND(B2=Baza!A3,Kalkulator!D25="TAK",Obliczenia!N3=Baza!U37),Baza!V31,IF(AND(B2=Baza!A3,Kalkulator!D25="TAK",Obliczenia!N3=Baza!U38),Baza!V32,0))) -> 0
A5: Armatura | C5: =_xlfn.IFS(Kalkulator!$D$12=Baza!$A$2,Baza!$J$3,Kalkulator!$D$12=Baza!$A$3,Baza!$J$4) -> 2000 | H5: 1
A6: Montaż | C6: =_xlfn.IFS(Kalkulator!$D$12=Baza!$A$2,Baza!$L$3,Kalkulator!$D$12=Baza!$A$3,Baza!$L$4) -> 6000 | H6: 3
A7: elektryka | C7: =_xlfn.IFS(Kalkulator!$D$12=Baza!$A$2,Baza!$N$3,Kalkulator!$D$12=Baza!$A$3,Baza!$N$4) -> 600
A8: Sterownik pokojowy bezprzewodowy | B8: =IF(Kalkulator!D27=Obliczenia!$H$2,Baza!V14,0) -> 0 | C8: =B8 -> 0
N18: PC
A19: Audyt | B19: =IF(Kalkulator!D30=Obliczenia!H2,Baza!V15,0) -> 0 | C19: =B19 -> 0 | N19: 5.6 | O19: Eco Heat 1F mono - 6kW
A20: Odcięcie starego źródła ciepła | B20: =Kalkulator!$D$19 -> 0 | C20: 0 | N20: 7.6 | O20: Eco Heat 3F mono - 8kW
A21: Wyniesienie starego źródła ciepła | B21: =IF(Kalkulator!D20=Obliczenia!$H$2,Baza!V4,0) -> 0 | C21: =IF(B20=H2,B21,0) -> 0 | N21: 9.6 | O21: Eco Heat 3F mono - 10kW
A22: Eco Wakacje | B22: =IF(Kalkulator!D21=Obliczenia!$H$2,Baza!V5,0) -> 0 | C22: =B22 -> 0 | N22: 11.6 | O22: Eco Heat 3F mono - 12kW
A23: Zasobink CWU PC | B23: =IF(Kalkulator!D22=Obliczenia!$H$2,Baza!V11,0) -> 0 | C23: =IF(B2=Baza!$A$2,Obliczenia!B23,0) -> 0 | N23: 13.6 | O23: Eco Heat 3F mono - 14kW
A24: Wymiennik Ciepła | B24: =IF(Kalkulator!D23=Obliczenia!H2,Baza!V13,0) -> 0 | C24: =B24 -> 0 | N24: 15.6 | O24: Eco Heat 3Fmono - 16kW
A25: Zasobink CWU 150l | B25: =IF(Kalkulator!D24=Obliczenia!$H$2,Baza!V8,0) -> 0 | C25: =IF(Kalkulator!D12=Baza!A3,Obliczenia!B25,0) -> 0 | N25: PP
A26: Modernizacja CO/CWU | B26: =IF(Kalkulator!D25=Obliczenia!$H$2,_xlfn.IFS(Kalkulator!F25=Obliczenia!H2,Baza!V9,Kalkulator!F25=Obliczenia!H1,Baza!V17),0) -> 0 | C26: =IF($B$2=Baza!$A$3,Obliczenia!B26,0) -> 0 | N26: 9.1 | O26: Piec na pelet Ferroli 12 kW
A27: Wykonanie wentylacji kotłowni | B27: =IF(Kalkulator!D26=Obliczenia!$H$2,Baza!V12,0) -> 0 | C27: =IF($B$2=Baza!$A$3,Obliczenia!B27,0) -> 0 | N27: 15.1 | O27: Piec na pelet Ferroli 18 kW
N28: 21.1 | O28: Piec na pelet Ferroli 24 kW
A29: Marża EcoRun | B29: =_xlfn.IFS($A$1=Baza!$D$8,Baza!$Q$2,$A$1=Baza!$D$9,Baza!$Q$3,$A$1=Baza!$D$10,Baza!$Q$3,$A$1=Baza!$D$11,Baza!$Q$4,$A$1=Baza!$D$12,Baza!$Q$4,$A$1=Baza!$D$13,Baza!$Q$4,$A$1=VLOOKUP($A$1,Baza!$D$3:$D$7,1,0),Baza!$Q$5) -> 7000 | C29: =B29 -> 7000 | N29: 27.1 | O29: Piec na pelet Ferroli 24 kW
A30: Marża SupremeEnergy | B30: =_xlfn.IFS($A$1=Baza!$D$8,Baza!$T$2,$A$1=Baza!$D$9,Baza!$T$2,$A$1=Baza!$D$10,Baza!$T$2,$A$1=Baza!$D$11,Baza!$T$3,$A$1=Baza!$D$12,Baza!$T$3,$A$1=Baza!$D$13,Baza!$T$3,$A$1=VLOOKUP($A$1,Baza!$D$3:$D$7,1,0),Baza!$T$4) -> 8000 | C30: =B30 -> 8000 | D30: =IF(Kalkulator!D12=Baza!A3,VLOOKUP(Kalkulator!D14,Baza!D3:F6,3,0)+SUM(C19:C27,C30),SUM(C3:C30)) -> 31258 | N30: PZ
N31: 11.1 | O31: Piec zgazowujący PEREKO 14 kW
A33: Pakiet | B33: =_xlfn.IFS(Kalkulator!D31=Baza!B2,Baza!C2,Kalkulator!D31=Baza!B3,Baza!C3,Kalkulator!D31=Baza!B4,Baza!C4,Kalkulator!D31=Baza!B5,Baza!C5) -> 10000 | C33: =$B$33 -> 10000
A35: Narzut dodany przez handlowca: | B35: =Kalkulator!$D$36 -> 0 | C35: =IF(Kalkulator!$D$31=Baza!$B$2,Obliczenia!$B$35,0) -> 0

Sheet Arkusz1 (hidden)
N2: Rodzaj Źródła Ciepła | Q2: Ilość obiegów grzewczych
D3: Pompa Ciepła | E3: Eco Heat 1F mono - 6kW | F3: 1 obieg - 1 - 1 pompa obiegowa | M3: =Kalkulator!D12 -> Pompa Ciepła | N3: =IF(M3=Baza!A2,_xlfn.UNIQUE(_xlfn._xlws.FILTER(E:E,E:E<>"")),_xlfn.UNIQUE(Baza!D3:D6)) -> Eco Heat 1F mono - 6kW | P3: =Kalkulator!D14 -> Eco Heat 1F mono - 6kW | Q3: =IF(P3=E14,_xlfn.UNIQUE(F13:F14),IF(P3=E3,_xlfn.UNIQUE(F3:F4),IF(P3=E5,_xlfn.UNIQUE(F5:F6),IF(P3=E7,_xlfn.UNIQUE(F7:F8),IF(P3=E9,_xlfn.UNIQUE(F9:F10),IF(P3=E11,_xlfn.UNIQUE(F11:F12),"")))))) -> 1 obieg - 1 - 1 pompa obiegowa
E4: Eco Heat 1F mono - 6kW | F4: 2 obiegi - 1 - 2 pompy obiegowe | N4: Eco Heat 3F mono - 8kW | Q4: 2 obiegi - 1 - 2 pompy obiegowe
E5: Eco Heat 3F mono - 8kW | F5: 1 obieg - 1 - 1 pompa obiegowa | N5: Eco Heat 3F mono - 10kW
E6: Eco Heat 3F mono - 8kW | F6: 2 obiegi - 1 - 2 pompy obiegowe | N6: Eco Heat 3F mono - 12kW
E7: Eco Heat 3F mono - 10kW | F7: 1 obieg - 1 - 1 pompa obiegowa | N7: Eco Heat 3F mono - 14kW
E8: Eco Heat 3F mono - 10kW | F8: 2 obiegi - 1 - 2 pompy obiegowe | N8: Eco Heat 3Fmono - 16kW
E9: Eco Heat 3F mono - 12kW | F9: 1 obieg - 5/4 - 1 pompa obiegowa
E10: Eco Heat 3F mono - 12kW | F10: 2 obiegi - 5/4 - 2 pompy obiegowe
E11: Eco Heat 3F mono - 14kW | F11: 1 obieg - 5/4 - 1 pompa obiegowa
E12: Eco Heat 3F mono - 14kW | F12: 2 obiegi - 5/4 - 2 pompy obiegowe
E13: Eco Heat 3Fmono - 16kW | F13: 1 obieg - 5/4 - 1 pompa obiegowa
E14: Eco Heat 3Fmono - 16kW | F14: 2 obiegi - 5/4 - 2 pompy obiegowe
